Cogmind - Beta 15 @@@ ROGUE MODE // 2025.07.24 @ 15:49:39 Player: Skysub Result: Destroyed by Y-72 Warden with Railgun Performance ------------- Evolutions (8) 4000 Regions Visited (26) 5200 Robots Destroyed (173) 865 Value Destroyed (6541) 6541 Prototype IDs (71) 1420 Alien Tech Used (14) 2800 Bonus (20676) 20676 TOTAL SCORE: 41502 Bonus ------- Triggered Max Security 1000 High Alert Combat Kills 564 Follower Combat Kills 310 Met Imprinter 300 Met Zhirov 300 Met Warlord at Base 500 MAIN.C Attacked Warlord 500 Warlord Defense Kills 748 Found Hidden Lab 3000 Used Core Reset Matrix 3000 Met Warlord at Research 2000 Pursued by Intercept 1500 Met Sigix 2000 Integrated Exoskeleton 5000 Friendly Fire -46 Cogmind --------- Core Integrity 0/1450 Matter 171/300 Energy 440/440 System Corruption 3% Temperature Cool (0) Movement Walking (30) Location -2/Section 7 Parts ------- > --- POWER (1) -------- Graviton Reactor > --- PROPULSION (3) --- Sigix Exoskeleton > --- UTILITY (3) ------ Medium Storage Unit Experimental Targeting Computer > --- WEAPON (2) ------- Sigix Sheargun Vortex Lance > --- INVENTORY (10) --- Experimental Core Analyzer Advanced Transmission Jammer High-powered Transdimensional Reconstructor Subatomic Replicator Terrabomb Sigix Sheargun Sigix Sheargun Sigix Containment Pod Peak State ------------ > --- POWER ------------ Graviton Reactor > --- PROPULSION ------- Sigix Exoskeleton > --- UTILITY ---------- Medium Storage Unit Experimental Core Analyzer Advanced Transmission Jammer > --- WEAPON ----------- Sigix Sheargun Sigix Sheargun > --- INVENTORY -------- Transdimensional Reconstructor Transdimensional Reconstructor High-powered Transdimensional Reconstructor Subatomic Replicator Sigix Sheargun Sigix Sheargun Plasma Cutter Vortex Lance Sigix Containment Pod [Rating: 222] Favorites ----------- Power Angular Momentum Engine Engine Angular Momentum Engine Power Core Reinforced Fission Core Reactor Graviton Reactor Propulsion Improved Treads Treads Improved Treads Leg Sigix Exoskeleton Wheel Compact Wheel Flight Unit Cooled Impulse Thruster Utility Huge Storage Unit Device Experimental Sensor Array Storage Huge Storage Unit Processor Targeting Computer Hackware Advanced Hacking Suite Protection Hardened Medium Armor Plating Artifact LC Capacitor Weapon Advanced Beam Cannon Energy Gun Advanced Beam Rifle Energy Cannon Advanced Beam Cannon Ballistic Gun KE Penetrator Ballistic Cannon Battle Cannon Launcher Grenade Launcher Special Weapon Plasma Cutter Impact Weapon Makeshift Hammer Slashing Weapon Makeshift Axe Piercing Weapon Vortex Lance Build | -11 -10 -10 -10 -8 -8 -8 -6 -6 -6 -5 -5 -5 -5 -5 -4 -4 -4 -4 -4 -3 -3 -3 -3 -2 -2 -2 ------- Run | Yrd Mat Min Sub Mat Sto Rec Fac Low Zio Pro Fac Upp Upp War Pro Fac Upp Upp Zhi Pro Res Arm Lab Res Qua Sec Slots Evolved 16 | . . . . 4 . . 4 . . . 2 . . . . 2 . . . . 2 . . 2 . . Power 1 | . . . . . . . . . . . . . . . . 1 . . . . . . . . . . Propulsion 4 | . . . . 1 . . 1 . . . . . . . . 1 . . . . 1 . . . . . Utility 10 | . . . . 2 . . 3 . . . 2 . . . . . . . . . 1 . . 2 . . Weapon 1 | . . . . 1 . . . . . . . . . . . . . . . . . . . . . . Parts Attached 225 | 6 14 2 18 23 21 2 13 . 2 9 15 5 . 17 1 12 4 4 7 . 7 . 2 24 4 13 Power 22 | 1 2 . 2 2 3 . 1 . . . 1 . . 1 . 1 1 . 1 . 1 . . 4 . 1 Engine 10 | 1 2 . 2 2 1 . 1 . . . . . . 1 . . . . . . . . . . . . Core 5 | . . . . . 2 . . . . . 1 . . . . . 1 . . . . . . 1 . . Reactor 7 | . . . . . . . . . . . . . . . . 1 . . 1 . 1 . . 3 . 1 Propulsion 53 | 2 5 . 5 7 8 . 1 . . 1 3 1 . 6 . 3 . . 4 . 1 . . 4 1 1 Treads 21 | 2 2 . 1 4 5 . 1 . . . 2 1 . 3 . . . . . . . . . . . . Leg . | . . . . . . . . . . . . . . . . . . . . . . . . . . . Wheel 13 | . 3 . 4 2 2 . . . . 1 1 . . . . . . . . . . . . . . . Hover . | . . . . . . . . . . . . . . . . . . . . . . . . . . . Flight 19 | . . . . 1 1 . . . . . . . . 3 . 3 . . 4 . 1 . . 4 1 1 Utility 92 | 1 3 2 2 6 2 . 8 . . 5 9 3 . 8 1 6 3 2 2 . 5 . 2 11 2 9 Device 39 | . . 2 2 2 . . 5 . . 4 1 2 . 2 1 3 2 . 1 . 3 . . 5 1 3 Storage 7 | 1 2 . . . . . . . . . . 1 . . . . . . . . . . . 1 1 1 Processor 19 | . 1 . . 1 . . 1 . . 1 2 . . 1 . 1 1 1 . . 2 . . 3 . 4 Hackware 10 | . . . . . 1 . . . . . 2 . . 2 . 2 . 1 1 . . . 1 . . . Protection 16 | . . . . 3 1 . 2 . . . 4 . . 3 . . . . . . . . 1 1 . 1 Artifact 1 | . . . . . . . . . . . . . . . . . . . . . . . . 1 . . Weapon 58 | 2 4 . 9 8 8 2 3 . 2 3 2 1 . 2 . 2 . 2 . . . . . 5 1 2 Energy Gun 11 | 1 . . . 2 3 . . . . . . 1 . . . . . 1 . . . . . 1 . 2 Energy Cannon 5 | . . . . 1 1 . 2 . . . . . . 1 . . . . . . . . . . . . Ballistic Gun 22 | 1 4 . 4 4 4 2 . . . 2 . . . . . 1 . . . . . . . . . . Ballistic Cannon 3 | . . . 1 . . . . . 1 . 1 . . . . . . . . . . . . . . . Launcher 4 | . . . 1 1 . . . . . 1 1 . . . . . . . . . . . . . . . Special Weapon 6 | . . . 2 . . . 1 . . . . . . . . . . . . . . . . 3 . . Impact Weapon 2 | . . . 1 . . . . . . . . . . . . . . . . . . . . . 1 . Slashing Weapon 3 | . . . . . . . . . 1 . . . . . . . . 1 . . . . . 1 . . Piercing Weapon 2 | . . . . . . . . . . . . . . 1 . 1 . . . . . . . . . . Special Melee Weapon . | . . . . . . . . . . . . . . . . . . . . . . . . . . . Unidentified Prototypes 49 | . . 1 . 5 4 . . . . . . 1 . 7 . 1 . . 3 . 5 1 4 7 4 6 Parts Lost 79 | . 7 . 7 12 5 1 7 . . 7 5 . . 17 . 3 . . . . . . . 1 3 4 Power 5 | . 2 . . 1 2 . . . . . . . . . . . . . . . . . . . . . Propulsion 26 | . 2 . 3 4 2 . 2 . . 3 . . . 7 . . . . . . . . . . 1 2 Utility 27 | . . . 1 2 . 1 1 . . 4 5 . . 6 . 2 . . . . . . . 1 2 2 Weapon 21 | . 3 . 3 5 1 . 4 . . . . . . 4 . 1 . . . . . . . . . . Highest Loss Streak 14 | . 2 . 3 5 1 1 5 . . 5 3 . . 14 . 1 . . . . . . . 1 3 4 To Critical Strikes . | . . . . . . . . . . . . . . . . . . . . . . . . . . . Average Backups 17 | 2 9 17 21 21 23 23 23 24 23 23 22 24 23 22 3 3 3 3 3 4 3 4 3 4 5 5 Power . | . . . . . . 1 1 1 1 1 1 1 1 . . . . . . . . . . . . . Propulsion 3 | 1 3 5 5 4 5 7 6 4 3 2 3 5 5 4 . . 1 1 1 2 1 1 . . . . Utility 7 | . 2 7 9 8 10 9 10 12 11 9 6 6 7 8 . . . . . . . . . 1 1 . Weapon 4 | . 2 4 6 5 5 5 3 4 5 8 8 9 8 8 2 1 2 2 1 1 1 2 . . . . Tool/Special . | . . . . . . . . . . . . . . . . . . . . . . . . . . . Unused Backups 39 | . 1 . 1 1 5 2 1 1 3 . . . . 11 . 3 . . . . 1 . 2 . 2 5 Power 3 | . . . . . . . . . . . . . . 2 . 1 . . . . . . . . . . Propulsion 6 | . 1 . 1 . . . . . 1 . . . . 2 . 1 . . . . . . . . . . Utility 11 | . . . . . 2 1 1 . 2 . . . . 2 . 1 . . . . . . . . 1 1 Weapon 11 | . . . . 1 2 1 . . . . . . . 4 . . . . . . . . 2 . . 1 Tool/Special 8 | . . . . . 1 . . 1 . . . . . 1 . . . . . . 1 . . . 1 3 Average Slot Usage (%) 90 | . 81 85 93 81 98 99 99 100 99 87 84 99 98 98 31 67 82 84 87 89 89 90 86 80 84 72 Engine 4 | . 11 . 9 5 4 . 5 6 6 6 3 . . . . . . . . . . . . . . . Core 1 | . . . . . 4 9 . . . . 1 5 5 4 . . . . . . . . . . . . Treads 12 | . 18 14 13 15 17 18 19 20 20 7 9 11 11 11 . . . . . . . . . . . . Wheel 7 | . 8 14 13 8 8 9 6 6 6 5 7 11 11 10 . . . . . . . . . . . . Flight 3 | . . . . . . . . . . . . . . . 5 13 21 21 21 21 23 23 22 22 24 12 Device 11 | . . 7 13 6 . . 11 13 13 18 12 22 23 23 7 17 24 26 17 15 20 23 19 12 15 11 Storage 7 | . 14 14 14 9 9 9 6 6 6 6 4 5 5 4 . . . . . . . . . . 1 6 Processor 8 | . . 6 . 8 9 9 11 13 13 13 10 11 11 11 11 14 10 10 10 10 10 9 9 8 8 8 Hackware 4 | . . . . . 3 9 6 6 6 . 7 . . . 5 8 10 10 18 21 14 14 13 12 12 7 Protection 4 | . . . . 2 13 8 8 6 6 5 6 11 11 9 . . . . . . . . 1 3 1 3 Energy Gun 3 | . 5 . 4 . . 9 3 6 6 . . 4 5 2 . . . . . . . . . . . 6 Energy Cannon 2 | . . . . . . . 8 13 9 6 3 . . . . . . . . . . . . . . . Ballistic Gun 10 | . 21 28 14 16 22 18 1 . . 11 5 5 5 10 . . . . . . . . . . . . Ballistic Cannon 1 | . . . . 4 . . 4 . 3 . . 3 . . . . . . . . . . . . . . Piercing Weapon 1 | . . . . . . . . . . . . . . . . 6 10 10 10 10 9 9 9 4 3 3 Peak Build Rating 222 | 6 9 17 19 34 36 36 61 55 56 60 91 83 86 99 35 118 118 121 120 119 144 140 150 198 207 222 Average Rating 60 | 5 6 9 15 27 30 35 55 55 55 55 75 81 81 87 33 80 111 113 116 119 137 139 141 174 174 164 On Entrance 72 | . 6 9 10 18 29 36 36 55 55 56 52 74 82 86 26 35 107 113 117 119 119 140 139 150 183 116 Naked Turns . | . . . . . . . . . . . . . . . . . . . . . . . . . . . Heaviest Build 179 | 12 89 84 93 103 110 101 118 108 111 120 179 146 140 145 2 36 35 38 35 34 35 35 42 54 61 50 Greatest Support 100 | 40 40 10 23 20 22 16 74 16 16 75 26 26 26 100 10 39 39 36 36 34 51 42 45 62 63 60 Greatest Overweight (x) 27 | 3 27 8 9 10 10 6 7 6 6 7 7 5 5 7 . . . 1 1 . . 1 . 1 4 1 Average Overweight (x) 2 | . 4 8 7 5 7 6 6 6 6 6 6 5 5 4 . . . . . . . . . . . . Largest Inventory Capacity 25 | 8 25 25 25 25 25 25 25 25 25 25 25 25 25 25 5 5 5 5 5 5 5 5 5 5 10 10 Average Capacity 20 | 7 21 25 25 25 25 25 25 25 25 25 25 25 25 24 5 5 5 5 5 5 5 5 5 5 7 9 Most Carried 25 | 4 17 20 25 25 25 25 25 25 25 25 25 25 25 25 5 5 5 5 5 5 5 5 5 5 10 10 Average Carried 18 | 2 9 17 23 22 24 24 24 24 24 24 23 24 24 24 4 4 5 5 4 5 4 4 3 4 6 7 Final Capacity 25 | 8 25 25 25 25 25 25 25 25 25 25 25 25 25 5 5 5 5 5 5 5 5 5 5 5 10 10 Final Carried 25 | 4 16 20 25 23 25 25 25 25 25 25 25 24 25 5 4 5 5 5 5 5 5 5 5 5 10 9 Class Distribution -------------------- 30% | Mutant 18% | Scavenger-Gunner 17% | Scavenger-Skirmisher 8% | Hacker-Ninja 6% | Scavenger-Tank 4% | Hacker-Scout 3% | Scavenger-Mutant Dominant Class ---------------- Mutant | -10/Materials Mutant | -10/Mines Mutant | -10/Subcaves Derelict-Gunner | -8/Materials Scavenger-Tank | -8/Storage Scavenger-Gunner | -8/Recycling Scavenger-Skirmisher | -6/Factory Scavenger-Skirmisher | -6/Lower Caves Scavenger-Skirmisher | -6/Zion Scavenger-Skirmisher | -5/Proximity Caves Hacker-Mutant | -5/Factory Scavenger-Gunner | -5/Upper Caves Scavenger-Gunner | -5/Upper Caves Scavenger-Gunner | -5/Warlord Mutant | -4/Proximity Caves Hacker-Scout | -4/Factory Hacker-Scout | -4/Upper Caves Hacker-Scout | -4/Upper Caves Hacker-Scout | -4/Zhirov Hacker-Scout | -3/Proximity Caves Hacker-Ninja | -3/Research Hacker-Ninja | -3/Armory Hacker-Ninja | -3/Lab Hacker-Sprinter | -2/Research Hacker-Ninja | -2/Quarantine Hacker-Ninja | -2/Section 7 Resources | -11 -10 -10 -10 -8 -8 -8 -6 -6 -6 -5 -5 -5 -5 -5 -4 -4 -4 -4 -4 -3 -3 -3 -3 -2 -2 -2 ----------- Run | Yrd Mat Min Sub Mat Sto Rec Fac Low Zio Pro Fac Upp Upp War Pro Fac Upp Upp Zhi Pro Res Arm Lab Res Qua Sec Matter Collected 7257 | 272 542 100 708 1016 1317 136 366 . 40 243 361 116 . 341 75 276 133 35 . 85 88 40 . 512 217 238 Remotely 555 | . . . 555 . . . . . . . . . . . . . . . . . . . . . . . Salvage Created 7497 | 92 877 100 138 1320 1941 221 721 . . 285 441 79 . 283 . 12 . . . . 50 40 . . 569 328 Parts 419 | 6 56 7 13 90 101 20 34 . . 19 26 3 . 4 . 4 . . . . 2 3 . . 11 20 Haulers Intercepted 7 | . . . . 3 4 . . . . . . . . . . . . . . . . . . . . . Recyclers Shooed 7 | . 1 . . 2 . 1 2 . . . 1 . . . . . . . . . . . . . . . Parts Field Recycled . | . . . . . . . . . . . . . . . . . . . . . . . . . . . Retrieved Matter . | . . . . . . . . . . . . . . . . . . . . . . . . . . . Parts Self-Destructed 55 | . . . 24 . . . . . . 22 . 3 . . . . 6 . . . . . . . . . Prevented . | . . . . . . . . . . . . . . . . . . . . . . . . . . . Kills | -11 -10 -10 -10 -8 -8 -8 -6 -6 -6 -5 -5 -5 -5 -5 -4 -4 -4 -4 -4 -3 -3 -3 -3 -2 -2 -2 ------- Run | Yrd Mat Min Sub Mat Sto Rec Fac Low Zio Pro Fac Upp Upp War Pro Fac Upp Upp Zhi Pro Res Arm Lab Res Qua Sec Combat Hostiles Destroyed 128 | . 21 2 4 27 29 5 11 . . 7 10 3 . 7 . . . . . . . . . . . 2 Guns 90 | . 21 2 3 13 29 5 1 . . 4 4 2 . 4 . . . . . . . . . . . 2 Cannons 17 | . . . . 3 . . 9 . . 1 3 . . 1 . . . . . . . . . . . . AOE 17 | . . . 1 8 . . . . . 2 3 1 . 2 . . . . . . . . . . . . Classes Destroyed 20 | 2 4 . 2 8 . . 2 . . 1 . . . . . . . . . . . . . . . 1 Worker 6 | . . . . 1 3 . 2 . . . . . . . . . . . . . . . . . . . Builder 9 | . 3 . . 5 . . . . . . . . . . . 1 . . . . . . . . . . Tunneler 4 | 1 . . . . 1 . . . . . 2 . . . . . . . . . . . . . . . Hauler 7 | . . . . 3 4 . . . . . . . . . . . . . . . . . . . . . Recycler 12 | 1 . . . 3 2 . 1 . . . . . . . . . . . . . . . . . 4 1 Mechanic 1 | . . . . 1 . . . . . . . . . . . . . . . . . . . . . . Drone 1 | . . . . . . . . . . 1 . . . . . . . . . . . . . . . . Watcher 6 | . 1 . . 1 1 . . . . . 1 . . . . . . . . . 1 1 . . . . Swarmer 12 | . 3 . . 4 . . . . . 1 . 2 . 2 . . . . . . . . . . . . Grunt 67 | . 18 2 . 14 17 . 6 . . 4 5 . . 1 . . . . . . . . . . . . Brawler 6 | . . . . 2 1 . . . . . 2 . . 1 . . . . . . . . . . . . Duelist 5 | . . . . 2 2 . . . . . . . . 1 . . . . . . . . . . . . Protector 1 | . . . . 1 . . . . . . . . . . . . . . . . . . . . . . Sentry 18 | . . . . 3 9 2 . . . 1 2 1 . . . . . . . . . . . . . . Specialist 3 | . . . . . . . 3 . . . . . . . . . . . . . . . . . . . Hunter 3 | . . . . 1 . . . . . . . . . 2 . . . . . . . . . . . . Programmer 3 | . . . . . . . 2 . . . 1 . . . . . . . . . . . . . . . Executioner 2 | . . . . . . . . . . . . . . . . . . . . . . . . . . 2 Cobbler 1 | . . . 1 . . . . . . . . . . . . . . . . . . . . . . . Subdweller 7 | . . . 4 . . 3 . . . . . . . . . . . . . . . . . . . . Best Kill Streak 25 | 2 3 2 2 25 7 1 8 . . 5 5 3 . 5 . 1 . . . . 1 1 . . 2 2 Combat Bots Only 16 | . 3 2 2 16 7 1 8 . . 5 4 3 . 5 . . . . . . . . . . . 2 Max Kills in Single Turn 4 | 1 1 1 1 4 2 1 1 . . 1 2 1 . 2 . 1 . . . . 1 1 . . 1 1 Gunslinging 1 | . . . . . 1 . . . . . . . . . . . . . . . . . . . . . Exploded 2 | . . . 1 2 . . . . . 1 1 1 . 2 . . . . . . . . . . . . Melee . | . . . . . . . . . . . . . . . . . . . . . . . . . . . Uniques/NPCs Destroyed . | . . . . . . . . . . . . . . . . . . . . . . . . . . . Combat | -11 -10 -10 -10 -8 -8 -8 -6 -6 -6 -5 -5 -5 -5 -5 -4 -4 -4 -4 -4 -3 -3 -3 -3 -2 -2 -2 -------- Run | Yrd Mat Min Sub Mat Sto Rec Fac Low Zio Pro Fac Upp Upp War Pro Fac Upp Upp Zhi Pro Res Arm Lab Res Qua Sec Hostile Shots Fired 1079 | . 99 8 28 160 107 13 81 . . 31 61 14 . 193 8 27 2 . . . 7 . 15 17 51 157 Missed 378 | . 27 2 7 52 18 2 21 . . 12 27 6 . 61 5 20 2 . . . 5 . 10 9 21 71 Hits 701 | . 72 6 21 108 89 11 60 . . 19 34 8 . 132 3 7 . . . . 2 . 5 8 30 86 Melee 40 | . . . . 14 7 . . . . . 2 . . 17 . . . . . . . . . . . . Projectile 661 | . 72 6 21 94 82 11 60 . . 19 32 8 . 115 3 7 . . . . 2 . 5 8 30 86 AOE 4 | . . . . . . 2 . . . . . . . . . . . . . . . . . . . 2 Critical Strikes 26 | . . . . 5 8 . 2 . . . 2 . . 2 . . . . . . . . . . 4 3 Part Disruptions 2 | . . . . . . . . . . . . 1 . . . . . . . . . . . . 1 . Damage Taken 14963 | . 897 98 550 1933 1518 254 1167 . . 706 743 230 . 2897 62 159 . . . . 86 . 129 234 1225 2075 Core 2767 | . 91 31 86 337 93 18 61 . . 48 38 24 . 690 62 16 . . . . 21 . . 22 368 761 Absorbed by Shields 31 | . . . . . . . . . . . . 31 . . . . . . . . . . . . . . Ignored by Resistances 934 | . . . . . . . . . . . . . . . . . . . . . . . . . . 934 Regen/Repaired (Parts) 453 | . . . . . 323 . . . . . 100 . . 30 . . . . . . . . . . . . Core Remaining (%) 60 | 100 . . 16 . . 18 . . . 87 . . . . 18 . . . . 98 . . 89 . . . Volleys Fired 453 | 4 101 6 32 59 107 10 42 . . 17 24 6 1 24 . . . . . . . . . 1 . 19 Largest 3 | 2 2 2 2 3 3 3 3 . . 3 3 3 1 3 . . . . . . . . . 1 . 2 Hottest 200 | 70 70 40 100 95 109 109 197 . . 137 141 150 81 154 . . . . . . . . . . . 200 Shots Fired 1080 | 8 203 12 45 149 302 31 103 . . 47 62 12 2 64 . . . . . . . . . 1 . 39 Gun 891 | 8 203 12 35 119 302 31 30 . . 26 29 10 2 45 . . . . . . . . . . . 39 Cannon 150 | . . . . 20 . . 73 . . 18 22 . . 17 . . . . . . . . . . . . Launcher 37 | . . . 9 10 . . . . . 3 11 2 . 2 . . . . . . . . . . . . Special 2 | . . . 1 . . . . . . . . . . . . . . . . . . . . 1 . . Kinetic 823 | 4 171 12 30 148 295 20 32 . . 22 42 6 . 41 . . . . . . . . . . . . Thermal 189 | 4 32 . 6 . 7 11 71 . . 22 9 4 2 21 . . . . . . . . . . . . Explosive 28 | . . . 9 1 . . . . . 3 11 2 . 2 . . . . . . . . . . . . Electromagnetic . | . . . . . . . . . . . . . . . . . . . . . . . . . . . Impact 1 | . . . . . . . . . . . . . . . . . . . . . . . . 1 . . Slashing 39 | . . . . . . . . . . . . . . . . . . . . . . . . . . 39 Robot Hit Streak 33 | 7 10 9 11 16 27 13 10 . . 6 11 9 . 23 . . . . . . . . . . . 33 Robot Miss Streak 6 | 1 6 1 4 2 5 1 3 . . 6 3 1 1 2 . . . . . . . . . . . 1 Penetration Max 1 | . . . . . . . . . . . 1 . . 1 . . . . . . . . . . . 1 Secondary Targets 8 | . . . . 6 2 . . . . . . . . . . . . . . . . . . . . . Max Gunslinging Chain 1 | . . . . 1 1 . . . . . . . . . . . . . . . . . . . . . Shots Hit Robots 737 | 7 119 10 26 112 222 20 62 . . 21 46 10 . 50 . 1 . . . . 4 1 . 1 7 18 Core Hits 339 | 2 47 6 12 71 80 7 29 . . 15 36 7 . 17 . . . . . . 1 1 . . 3 5 Critical Kills 6 | . . . . . 2 . 1 . . 3 . . . . . . . . . . . . . . . . Critical Parts Destroyed 12 | . . . . 5 1 . . . . 1 2 1 . 2 . . . . . . . . . . . . Critical Strikes 39 | . 1 . 1 6 5 . 5 . . 4 7 1 . 6 . . . . . . . 1 . . . 2 Burn 7 | . 1 . 1 . 2 . 2 . . . . . . 1 . . . . . . . . . . . . Meltdown 1 | . . . . . . . 1 . . . . . . . . . . . . . . . . . . . Destroy 15 | . . . . 2 3 . . . . 4 2 1 . 3 . . . . . . . . . . . . Blast 10 | . . . . 1 . . 2 . . . 5 . . 2 . . . . . . . . . . . . Smash 3 | . . . . 3 . . . . . . . . . . . . . . . . . . . . . . Sever 1 | . . . . . . . . . . . . . . . . . . . . . . . . . . 1 Impale 1 | . . . . . . . . . . . . . . . . . . . . . . 1 . . . . Sunder 1 | . . . . . . . . . . . . . . . . . . . . . . . . . . 1 Melee Attacks 143 | . . . 7 11 17 . 3 . . 3 2 . . . . 6 2 1 . 4 18 12 7 10 27 13 Impact 38 | . . . 7 11 17 . 3 . . . . . . . . . . . . . . . . . . . Slashing 60 | . . . . . . . . . . 3 2 . . . . . . . . 3 11 9 5 5 22 . Piercing 19 | . . . . . . . . . . . . . . . . 4 1 1 . 1 5 2 . 5 . . Entropic 26 | . . . . . . . . . . . . . . . . 2 1 . . . 2 1 2 . 5 13 Sneak Attacks 11 | . . . . . 2 . . . . . 1 . . . . 1 . . . . . . . 1 5 1 Combat Hostiles . | . . . . . . . . . . . . . . . . . . . . . . . . . . . Follow-up Attacks 3 | . . . . . . . . . . . . . . . . . . . . . 2 . . . 1 . Damage Inflicted 18246 | 88 1504 141 748 3198 3516 387 1358 . . 765 2129 359 . 1560 . 168 . . . . 239 35 . 89 582 1380 Guns 10626 | 88 1483 114 356 1479 3362 387 391 . . 271 587 203 . 821 . . . . . . . . . . . 1084 Cannons 2216 | . . . . 253 . . 967 . . 142 451 . . 403 . . . . . . . . . . . . Explosions 3364 | . . . 392 1148 . . . . . 352 985 156 . 331 . . . . . . . . . . . . Melee 1980 | . . . . 318 149 . . . . . 106 . . . . 166 . . . . 239 35 . 89 582 296 Ramming 60 | . 21 27 . . 5 . . . . . . . . 5 . 2 . . . . . . . . . . Kinetic 10671 | 50 1220 114 307 2880 3242 227 508 . . 271 904 108 . 840 . . . . . . . . . . . . Thermal 2235 | 38 263 . 49 . 120 160 850 . . 142 134 95 . 384 . . . . . . . . . . . . Explosive 2216 | . . . 392 . . . . . . 352 985 156 . 331 . . . . . . . . . . . . Electromagnetic . | . . . . . . . . . . . . . . . . . . . . . . . . . . . Impact 467 | . . . . 318 149 . . . . . . . . . . . . . . . . . . . . . Slashing 1823 | . . . . . . . . . . . 106 . . . . . . . . . 51 . . . 582 1084 Piercing 312 | . . . . . . . . . . . . . . . . . . . . . 188 35 . 89 . . Entropic 462 | . . . . . . . . . . . . . . . . 166 . . . . . . . . . 296 Highest Corruption 9 | . 2 2 2 2 9 9 . . . 8 9 9 9 9 6 2 2 2 2 2 . . 2 . 7 7 Average Corruption 4 | . 2 2 2 2 6 9 . . . 8 8 9 9 7 6 2 2 2 2 2 . . 1 . 2 1 Corruption Purged . | . . . . . . . . . . . . . . . . . . . . . . . . . . . Corruption Blocked . | . . . . . . . . . . . . . . . . . . . . . . . . . . . Effects 249 | . 19 18 28 1 71 20 . . . 27 9 22 15 2 4 . 3 1 1 1 . . . . 1 6 Message Errors 71 | . 7 4 2 1 27 7 . . . 5 5 4 5 1 1 . 1 . . . . . . . . 1 Matter Fused 62 | . 6 5 9 . 10 6 . . . 6 1 7 3 1 2 . 2 1 . . . . . . . 3 Heat Flow Errors 22 | . 1 2 6 . 5 2 . . . 3 1 2 . . . . . . . . . . . . . . Energy Discharges 27 | . 1 2 5 . 2 4 . . . 7 . 2 2 . 1 . . . 1 . . . . . . . Parts Rejected 5 | . . . . . 3 . . . . . . 1 1 . . . . . . . . . . . . . Parts Fused 4 | . . . 1 . . . . . . . 1 1 . . . . . . . . . . . . 1 . Data Loss (minor) 24 | . 1 2 4 . 10 . . . . 3 . 1 2 . . . . . . 1 . . . . . . Data Loss (major) 6 | . . 2 1 . 2 . . . . . . 1 . . . . . . . . . . . . . . Misfires 12 | . 3 . . . 3 1 . . . 2 . . 1 . . . . . . . . . . . . 2 Alerts 7 | . . 1 . . 1 . . . . 1 . 3 1 . . . . . . . . . . . . . Weapon Failures 9 | . . . . . 8 . . . . . 1 . . . . . . . . . . . . . . . Overload Shots . | . . . . . . . . . . . . . . . . . . . . . . . . . . . Overflow Damage 568 | . . . 2 152 . . . . . . 91 . . 7 . 146 . . . . . . . . 170 . Projectiles 8 | . . . . . . . . . . . 1 . . 7 . . . . . . . . . . . . Explosions 102 | . . . 2 45 . . . . . . 55 . . . . . . . . . . . . . . . Melee 458 | . . . . 107 . . . . . . 35 . . . . 146 . . . . . . . . 170 . Knockbacks 19 | . . . . 4 . . 9 . . . . . . 6 . . . . . . . . . . . . Impact 2 | . . . . 2 . . . . . . . . . . . . . . . . . . . . . . Kinetic 15 | . . . . 2 . . 7 . . . . . . 6 . . . . . . . . . . . . Secondary 2 | . . . . . . . 2 . . . . . . . . . . . . . . . . . . . Self-Inflicted Damage 183 | . . 13 51 63 . . . . . . . . . 55 . 1 . . . . . . . . . . Shots 9 | . . . 4 3 . . . . . . . . . 2 . . . . . . . . . . . . Rammed 12 | . 7 2 . . 1 . . . . . . . . 1 . 1 . . . . . . . . . . Targets Rammed 12 | . 7 2 . . 1 . . . . . . . . 1 . 1 . . . . . . . . . . Kicked . | . . . . . . . . . . . . . . . . . . . . . . . . . . . Crushed . | . . . . . . . . . . . . . . . . . . . . . . . . . . . Highest Temperature 348 | 36 138 187 209 201 340 177 260 . . 348 174 217 30 200 . . . . . . 275 . . 56 21 63 Average Temperature 82 | 19 43 83 98 78 89 62 87 . . 147 55 78 30 75 . . . . . . 90 . . 32 18 26 Received Heat Transfer 3281 | . 426 48 54 693 702 48 370 . . 126 207 4 . 405 9 27 . . . . . . . 9 45 108 Effects 7 | . . . . 1 2 . . . . 4 . . . . . . . . . . . . . . . . Shutdowns 1 | . . . . . . . . . . 1 . . . . . . . . . . . . . . . . Energy Bleed 1 | . . . . 1 . . . . . . . . . . . . . . . . . . . . . . Interference 5 | . . . . . 2 . . . . 3 . . . . . . . . . . . . . . . . Siege Activations . | . . . . . . . . . . . . . . . . . . . . . . . . . . . Martial Activations . | . . . . . . . . . . . . . . . . . . . . . . . . . . . Shielding Activations . | . . . . . . . . . . . . . . . . . . . . . . . . . . . Robots Disrupted . | . . . . . . . . . . . . . . . . . . . . . . . . . . . Combat Hostiles . | . . . . . . . . . . . . . . . . . . . . . . . . . . . Robots Corrupted 3 | . . . . 3 . . . . . . . . . . . . . . . . . . . . . . Combat Hostiles 3 | . . . . 3 . . . . . . . . . . . . . . . . . . . . . . Parts Fried 3 | . . . . 3 . . . . . . . . . . . . . . . . . . . . . . Impact Corruptions 4 | . . . . 4 . . . . . . . . . . . . . . . . . . . . . . Robots Melted 1 | . . . . . . . 1 . . . . . . . . . . . . . . . . . . . Combat Hostiles 1 | . . . . . . . 1 . . . . . . . . . . . . . . . . . . . Parts Melted 8 | . 1 . . . . 2 3 . . . . 1 . 1 . . . . . . . . . . . . Heat Transferred 4623 | 111 851 . 222 . 370 296 1554 . . 259 222 148 . 590 . . . . . . . . . . . . Parts Sabotaged 8 | . . . . . . . . . . . . . . 8 . . . . . . . . . . . . Parts Stolen . | . . . . . . . . . . . . . . . . . . . . . . . . . . . Parts Stripped . | . . . . . . . . . . . . . . . . . . . . . . . . . . . Power Chain Reactions . | . . . . . . . . . . . . . . . . . . . . . . . . . . . Alert | -11 -10 -10 -10 -8 -8 -8 -6 -6 -6 -5 -5 -5 -5 -5 -4 -4 -4 -4 -4 -3 -3 -3 -3 -2 -2 -2 ------- Run | Yrd Mat Min Sub Mat Sto Rec Fac Low Zio Pro Fac Upp Upp War Pro Fac Upp Upp Zhi Pro Res Arm Lab Res Qua Sec Maximum Alert Level 5 | . 1 . . 2 1 . . . . . 3 . . . . . . . . . . . . . . 5 Low Security (%) 81 | 100 78 100 . 55 59 100 100 . . . . . . . . 100 . . . . 100 100 . 100 100 67 Level 1 9 | . 21 . . 1 40 . . . . . . . . . . . . . . . . . . . . . Level 2 4 | . . . . 42 . . . . . . 49 . . . . . . . . . . . . . . . Level 3 2 | . . . . . . . . . . . 50 . . . . . . . . . . . . . . . Level 4 . | . . . . . . . . . . . . . . . . . . . . . . . . . . . Level 5 . | . . . . . . . . . . . . . . . . . . . . . . . . . . . High Security . | . . . . . . . . . . . . . . . . . . . . . . . . . . . Max Security 1 | . . . . . . . . . . . . . . . . . . . . . . . . . . 32 Peak Influence 1700 | 10 245 102 . 561 314 111 157 . . . 900 . . . . 118 . . . . 84 129 . 109 126 1700 Initial 900 | . . 52 . . 221 111 150 . . . 900 . . . . . . . . . . 44 . . . 70 Average 135 | . 105 7 . 236 158 23 55 . . . 691 . . . . 28 . . . . 40 43 . 44 53 572 Influence Increases 7000 | 10 641 50 23 856 996 146 572 . . 200 1348 60 . 140 45 222 . . . . 281 240 . 364 452 354 Destroy 0b10 Robot/C 2500 | . 420 40 20 520 600 40 220 . . 120 200 60 . 140 . . . . . . . 80 . . . 40 Destroy 0b10 Robot/NC 240 | 10 20 . . 75 55 . 15 . . 5 15 . . . . 5 . . . . 10 5 . . 20 5 Destroy Leader 488 | . 92 10 . 108 160 . 50 . . . 42 . . . . . . . . . 4 22 . . . . Allied During Kill 17 | . . . 3 . 14 . . . . . . . . . . . . . . . . . . . . . Successful Hack 429 | . 30 . . . 27 16 6 . . . 7 . . . . 44 . . . . 62 20 . 91 42 84 Select Force Hacks 180 | . 30 . . . . 90 30 . . . . . . . . . . . . . 30 . . . . . Disable Machine 540 | . 15 . . 60 15 . 75 . . . 60 . . . . . . . . . . 75 . 60 75 105 Destroy Structure 326 | . 4 . . 93 5 . 11 . . . 124 . . . . 8 . . . . 10 8 . 18 30 15 Advance Influence 1050 | . . . . . . . 150 . . . 900 . . . . . . . . . . . . . . . Partial Spotted 315 | . . . . . 15 . . . . . . . . . . . . . . . 90 30 . 105 75 . Lose Combat Pursuer 915 | . 30 . . . 105 . 15 . . 75 . . . . 45 165 . . . . 75 . . 90 210 105 Influence Decreases 6769 | 10 507 184 23 330 1237 431 451 121 . 200 612 591 205 140 45 104 118 . . . 197 312 12 364 326 249 Entered New Map 1073 | . . 82 . . 305 174 . 46 . . . 273 40 . . . 45 . . . . 40 12 . . 56 Time Decay 4330 | 10 437 102 23 217 575 247 381 75 . 150 262 318 165 24 45 84 73 . . . 187 132 . 344 286 193 Search Patrol Dispatched 150 | . . . . . . . . . . . 150 . . . . . . . . . . . . . . . Lost Part 589 | . 70 . . 113 50 10 70 . . 50 50 . . 116 . 20 . . . . . . . 10 30 . Lost Ally 210 | . . . . . 40 . . . . . . . . . . . . . . . 10 140 . 10 10 . Purge Threat 417 | . . . . . 267 . . . . . 150 . . . . . . . . . . . . . . . Squads Dispatched 68 | . 5 . . 4 4 . 6 . . . 3 . . . . 1 . . . . 2 2 . 13 9 19 Investigation 11 | . 4 . . . 1 . 2 . . . 1 . . . . . . . . . 1 . . 2 . . Extermination 9 | . . . . . . . 2 . . . 1 . . . . 1 . . . . 1 1 . . 2 1 Reinforcement 10 | . 1 . . 3 1 . 2 . . . 1 . . . . . . . . . . 1 . . 1 . Assault 15 | . . . . 1 2 . . . . . . . . . . . . . . . . . . . . 12 Garrison . | . . . . . . . . . . . . . . . . . . . . . . . . . . . Intercept 23 | . . . . . . . . . . . . . . . . . . . . . . . . 11 6 6 Searches Triggered 1 | . . . . . . . . . . . 1 . . . . . . . . . . . . . . . Construction Impeded 2 | . . . . 1 . . . . . . 1 . . . . . . . . . . . . . . . Haulers Reinforced . | . . . . . . . . . . . . . . . . . . . . . . . . . . . Active Scanning Responses . | . . . . . . . . . . . . . . . . . . . . . . . . . . . Cargo Convoy Interrupts . | . . . . . . . . . . . . . . . . . . . . . . . . . . . Stealth | -11 -10 -10 -10 -8 -8 -8 -6 -6 -6 -5 -5 -5 -5 -5 -4 -4 -4 -4 -4 -3 -3 -3 -3 -2 -2 -2 --------- Run | Yrd Mat Min Sub Mat Sto Rec Fac Low Zio Pro Fac Upp Upp War Pro Fac Upp Upp Zhi Pro Res Arm Lab Res Qua Sec Distress Signals 31 | . 4 . . 2 3 3 1 . . 2 2 . . 1 . . . . . . 1 2 . 9 1 . Communications Jammed 24 | . . . . . . . . . . . . . . . . . . . . . 15 1 . 8 . . Distress Signals 24 | . . . . . . . . . . . . . . . . . . . . . 15 1 . 8 . . Times Spotted 383 | . 39 2 13 36 49 4 13 . . 14 14 3 . 25 3 15 6 . . . 19 4 1 33 29 61 Peak Tracking Total 33 | . 4 2 2 9 6 1 6 . . 5 6 3 . 12 3 9 7 . . . 6 3 1 12 18 33 Tactical Retreats 32 | . 2 . . . 5 . 1 . . 3 . . . . 1 4 . . . . 4 . . 5 4 3 Traps | -11 -10 -10 -10 -8 -8 -8 -6 -6 -6 -5 -5 -5 -5 -5 -4 -4 -4 -4 -4 -3 -3 -3 -3 -2 -2 -2 ------- Run | Yrd Mat Min Sub Mat Sto Rec Fac Low Zio Pro Fac Upp Upp War Pro Fac Upp Upp Zhi Pro Res Arm Lab Res Qua Sec Traps Triggered 17 | . 6 . . . 5 . . . . . 1 2 . . . 1 . . . . 1 1 . . . . Indirectly . | . . . . . . . . . . . . . . . . . . . . . . . . . . . Trap Hack Attempts . | . . . . . . . . . . . . . . . . . . . . . . . . . . . Triggered . | . . . . . . . . . . . . . . . . . . . . . . . . . . . Disarmed 6 | . . . . . 6 . . . . . . . . . . . . . . . . . . . . . Reprogrammed . | . . . . . . . . . . . . . . . . . . . . . . . . . . . Reused . | . . . . . . . . . . . . . . . . . . . . . . . . . . . Traps Extracted . | . . . . . . . . . . . . . . . . . . . . . . . . . . . Installed . | . . . . . . . . . . . . . . . . . . . . . . . . . . . Triggered . | . . . . . . . . . . . . . . . . . . . . . . . . . . . Machines | -11 -10 -10 -10 -8 -8 -8 -6 -6 -6 -5 -5 -5 -5 -5 -4 -4 -4 -4 -4 -3 -3 -3 -3 -2 -2 -2 ---------- Run | Yrd Mat Min Sub Mat Sto Rec Fac Low Zio Pro Fac Upp Upp War Pro Fac Upp Upp Zhi Pro Res Arm Lab Res Qua Sec Machines Disabled 44 | . 1 . 1 4 1 . 5 . . 2 4 . 1 1 . . . . . . . 5 2 4 5 8 Max in Single Turn 1 | . 1 . 1 1 1 . 1 . . 1 1 . 1 1 . . . . . . . 1 1 1 1 1 Garrison Access 3 | . . . . . . . . . . . . . . . . . . . . . 1 . . 1 1 . Machines Repaired . | . . . . . . . . . . . . . . . . . . . . . . . . . . . Machines Dismantled 7 | . . . . . . . 2 . . . . . . 1 . . . . . . . . . 3 1 . Machines Sabotaged . | . . . . . . . . . . . . . . . . . . . . . . . . . . . Overloaded Fab Kills . | . . . . . . . . . . . . . . . . . . . . . . . . . . . Hacking | -11 -10 -10 -10 -8 -8 -8 -6 -6 -6 -5 -5 -5 -5 -5 -4 -4 -4 -4 -4 -3 -3 -3 -3 -2 -2 -2 --------- Run | Yrd Mat Min Sub Mat Sto Rec Fac Low Zio Pro Fac Upp Upp War Pro Fac Upp Upp Zhi Pro Res Arm Lab Res Qua Sec Machines Accessed 108 | . 9 . 1 2 10 5 5 1 . . 3 1 . 10 . 7 . . 4 . 12 6 2 7 12 11 Terminals 63 | . 7 . . 2 8 2 2 . . . 2 . . . . 4 . . . . 8 5 . 3 10 10 Fabricators 4 | . . . . . . . . . . . . . . . . 2 . . . . . 1 . 1 . . Repair Stations 3 | . . . . . 1 . . . . . 1 . . . . . . . . . . . . 1 . . Recycling Units 13 | . 2 . . . 1 3 3 . . . . . . . . . . . . . 3 . . 1 . . Scanalyzers 2 | . . . . . . . . . . . . . . . . . . . . . . . . . 1 1 Garrison Access 4 | . . . . . . . . . . . . . . . . 1 . . . . 1 . . 1 1 . Total Hacks 316 | . 31 . 1 5 23 13 11 1 . . 11 1 . 19 . 23 . . 17 . 40 24 2 27 30 37 Successful 192 | . 11 . 1 1 17 10 8 1 . . 8 1 . 19 . 12 . . 17 . 19 13 2 19 17 16 Failed 124 | . 20 . . 4 6 3 3 . . . 3 . . . . 11 . . . . 21 11 . 8 13 21 Catastrophic 20 | . 3 . . 1 3 1 2 . . . 1 . . . . 3 . . . . 1 . . 2 3 . Database Lockouts . | . . . . . . . . . . . . . . . . . . . . . . . . . . . Manual 143 | . 26 . . 4 6 5 2 . . . 5 . 1 . . 17 . . . . 19 16 1 11 18 12 Terminals 206 | . 24 . . 5 18 4 5 . . . 9 . . . . 16 . . . . 28 21 . 14 26 36 Fabricators 16 | . . . . . . . . . . . . . . . . 6 . . . . . 3 . 7 . . Repair Stations 8 | . . . . . 4 . . . . . 2 . . . . . . . . . . . . 2 . . Recycling Units 35 | . 7 . . . 1 9 6 . . . . . . . . . . . . . 9 . . 3 . . Scanalyzers 4 | . . . . . . . . . . . . . . . . . . . . . . . . . 3 1 Garrison Access 6 | . . . . . . . . . . . . . . . . 1 . . . . 3 . . 1 1 . Terminal Hacks 107 | . . . 1 1 11 2 2 1 . . 4 1 . 19 . 8 . . 17 . 5 4 2 7 11 11 Record 24 | . . . . . . . . . . . . . . 13 . . . . 5 . 1 . 1 . 4 . Part Schematic 6 | . . . . . 1 1 . . . . . . . . . . . . 4 . . . . . . . Robot Analysis 6 | . . . . . . 1 . . . . . . . . . . . . 4 . . . . 1 . . Prototype ID Bank 11 | . . . . . . . . . . . . . . 5 . 1 . . 4 . . . . 1 . . Open Door 10 | . . . . . 3 . . 1 . . . 1 . 1 . . . . . . . 1 . . 1 2 Level Access Points 1 | . . . . . . . . . . . . . . . . . . . . . . . . . . 1 Branch Access Points 5 | . . . . . 1 . 1 . . . 1 . . . . 1 . . . . 1 . . . . . Machine Index 3 | . . . . . . . . . . . . . . . . . . . . . 1 . . . 1 1 Terminal Index 4 | . . . . . . . . . . . . . . . . 1 . . . . . 1 . 1 . 1 Fabricator Index 1 | . . . . . . . . . . . . . . . . . . . . . . . . 1 . . Alert Level 5 | . . . . 1 1 . . . . . 1 . . . . 1 . . . . . . . . . 1 Unreport Threat 3 | . . . . . 2 . . . . . 1 . . . . . . . . . . . . . . . Locate Traps 5 | . . . . . 1 . 1 . . . . . . . . 2 . . . . . . . . . 1 Disarm Traps 1 | . . . . . 1 . . . . . . . . . . . . . . . . . . . . . Dispatch Records 1 | . . . . . . . . . . . . . . . . . . . . . . . . . 1 . Maintenance Status 1 | . . . . . . . . . . . . . . . . . . . . . . . . 1 . . Garrison Status 1 | . . . . . . . . . . . . . . . . 1 . . . . . . . . . . Recall Extermination 1 | . . . . . . . . . . . . . . . . . . . . . . . . . . 1 Recall Reinforcements 1 | . . . . . . . . . . . . . . . . . . . . . . 1 . . . . Registered Components 4 | . . . . . . . . . . . . . . . . 1 . . . . 1 . . 1 1 . Registered Prototypes 2 | . . . . . . . . . . . . . . . . . . . . . . 1 . . 1 . Zone Layout 9 | . . . . . 1 . . . . . 1 . . . . . . . . . 1 . . 1 2 3 Proto ID Catalog 1 | . . . 1 . . . . . . . . . . . . . . . . . . . . . . . Release Object 1 | . . . . . . . . . . . . . . . . . . . . . . . 1 . . . Fabricator Hacks 5 | . . . . . . . . . . . . . . . . 1 . . . . . 1 . 3 . . Network Status 3 | . . . . . . . . . . . . . . . . 1 . . . . . 1 . 1 . . Load Schematic 1 | . . . . . . . . . . . . . . . . . . . . . . . . 1 . . Build 1 | . . . . . . . . . . . . . . . . . . . . . . . . 1 . . Repair Station Hacks 7 | . . . . . 4 . . . . . 2 . . . . . . . . . . . . 1 . . Scan Component 3 | . . . . . 2 . . . . . 1 . . . . . . . . . . . . . . . Repair 3 | . . . . . 2 . . . . . 1 . . . . . . . . . . . . . . . Refit 1 | . . . . . . . . . . . . . . . . . . . . . . . . 1 . . Recycling Unit Hacks 17 | . 3 . . . 1 4 4 . . . . . . . . . . . . . 4 . . 1 . . Report Inventory 13 | . 2 . . . 1 3 3 . . . . . . . . . . . . . 3 . . 1 . . Retrieve Components 4 | . 1 . . . . 1 1 . . . . . . . . . . . . . 1 . . . . . Scanalyzer . | . . . . . . . . . . . . . . . . . . . . . . . . . . . Garrison Access Hacks 3 | . . . . . . . . . . . . . . . . . . . . . 1 . . 1 1 . Seal Access 3 | . . . . . . . . . . . . . . . . . . . . . 1 . . 1 1 . Unauthorized Hacks 53 | . 8 . . . 1 4 2 . . . 2 . . . . 3 . . . . 9 8 . 6 5 5 Terminals 41 | . 7 . . . 1 1 1 . . . 2 . . . . 2 . . . . 8 8 . 3 4 4 Track 5 | . . . . . . . . . . . . . . . . . . . . . . 3 . . 1 1 Assimilate 6 | . . . . . . . . . . . . . . . . . . . . . 1 1 . 1 2 1 Botnet 18 | . 2 . . . 1 1 1 . . . 2 . . . . 2 . . . . 2 2 . 2 1 2 Skim 12 | . 5 . . . . . . . . . . . . . . . . . . . 5 2 . . . . Fabricators 4 | . . . . . . . . . . . . . . . . 1 . . . . . . . 3 . . Report 1 | . . . . . . . . . . . . . . . . . . . . . . . . 1 . . Liberate 1 | . . . . . . . . . . . . . . . . . . . . . . . . 1 . . Fabnet 2 | . . . . . . . . . . . . . . . . 1 . . . . . . . 1 . . Repair Stations . | . . . . . . . . . . . . . . . . . . . . . . . . . . . Recycling Units 6 | . 1 . . . . 3 1 . . . . . . . . . . . . . 1 . . . . . Tunnel 6 | . 1 . . . . 3 1 . . . . . . . . . . . . . 1 . . . . . Scanalyzers 2 | . . . . . . . . . . . . . . . . . . . . . . . . . 1 1 Researchers 2 | . . . . . . . . . . . . . . . . . . . . . . . . . 1 1 Garrison Access . | . . . . . . . . . . . . . . . . . . . . . . . . . . . Data Cores Recovered . | . . . . . . . . . . . . . . . . . . . . . . . . . . . Used . | . . . . . . . . . . . . . . . . . . . . . . . . . . . Hacking Detections 73 | . 9 . . 2 8 3 5 . . . 3 . . . . 7 . . . . 8 5 . 6 9 8 Full Trace Events 7 | . 2 . . . 1 . 1 . . . 1 . . . . . . . . . . . . 2 . . Feedback Events 1 | . . . . . 1 . . . . . . . . . . . . . . . . . . . . . Corruption 1 | . . . . . 1 . . . . . . . . . . . . . . . . . . . . . Feedback Blocked . | . . . . . . . . . . . . . . . . . . . . . . . . . . . Robot Schematics Acquired 2 | . . . . . . . . . 2 . . . . . . . . . . . . . . . . . Robots Built . | . . . . . . . . . . . . . . . . . . . . . . . . . . . Authchips . | . . . . . . . . . . . . . . . . . . . . . . . . . . . Time . | . . . . . . . . . . . . . . . . . . . . . . . . . . . Total Robot Build Rating . | . . . . . . . . . . . . . . . . . . . . . . . . . . . Part Schematics Acquired 21 | . . . . . 1 1 . . 15 . . . . . . . . . 4 . . . . . . . Parts Built 2 | . . . . . . . . . . . . . . . . . . . . . . . . 2 . . Authchips . | . . . . . . . . . . . . . . . . . . . . . . . . . . . Time 31 | . . . . . . . . . . . . . . . . . . . . . . . . 31 . . Total Part Build Rating 4 | . . . . . . . . . . . . . . . . . . . . . . . . 4 . . Parts Repaired 3 | . . . . . 2 . . . . . 1 . . . . . . . . . . . . . . . Time 126 | . . . . . 98 . . . . . 28 . . . . . . . . . . . . . . . Parts Recycled . | . . . . . . . . . . . . . . . . . . . . . . . . . . . Recycled Matter . | . . . . . . . . . . . . . . . . . . . . . . . . . . . Retrieved Matter . | . . . . . . . . . . . . . . . . . . . . . . . . . . . Retrieved Components 28 | . 10 . . . . 7 8 . . . . . . . . . . . . . 3 . . . . . Parts Scanalyzed . | . . . . . . . . . . . . . . . . . . . . . . . . . . . Part Schematics Acquired . | . . . . . . . . . . . . . . . . . . . . . . . . . . . Parts Damaged . | . . . . . . . . . . . . . . . . . . . . . . . . . . . Bothacking | -11 -10 -10 -10 -8 -8 -8 -6 -6 -6 -5 -5 -5 -5 -5 -4 -4 -4 -4 -4 -3 -3 -3 -3 -2 -2 -2 ------------ Run | Yrd Mat Min Sub Mat Sto Rec Fac Low Zio Pro Fac Upp Upp War Pro Fac Upp Upp Zhi Pro Res Arm Lab Res Qua Sec Used RIF Installer . | . . . . . . . . . . . . . . . . . . . . . . . . . . . Robots Hacked 2 | . . . . . . . . . . . . . . . . . . . . . 1 . . 1 . . Non-combat . | . . . . . . . . . . . . . . . . . . . . . . . . . . . Combat 2 | . . . . . . . . . . . . . . . . . . . . . 1 . . 1 . . Robot Hacks Applied . | . . . . . . . . . . . . . . . . . . . . . . . . . . . Relay Couplers Released . | . . . . . . . . . . . . . . . . . . . . . . . . . . . Fabnet Peak Effective % 3 | . . . . . . . . . . . . . . . . . . . . 3 3 3 3 1 1 1 Autooverrided 2 | . . . . . . . . . . . . . . . . . . . . . 1 . . 1 . . Robots Rewired 7 | . . . . . . . . . . . . . . . . . . . . . . 7 . . . . Allies Hacked . | . . . . . . . . . . . . . . . . . . . . . . . . . . . Hacks Repelled . | . . . . . . . . . . . . . . . . . . . . . . . . . . . Allies | -11 -10 -10 -10 -8 -8 -8 -6 -6 -6 -5 -5 -5 -5 -5 -4 -4 -4 -4 -4 -3 -3 -3 -3 -2 -2 -2 -------- Run | Yrd Mat Min Sub Mat Sto Rec Fac Low Zio Pro Fac Upp Upp War Pro Fac Upp Upp Zhi Pro Res Arm Lab Res Qua Sec Total Allies 21 | . . 5 . . 2 . . . . . . . . . . . . . . . 2 8 . 2 1 1 Largest Group 7 | . . 5 5 . 2 . . . . . . . . . . . . . . . 1 7 . 1 1 1 Highest-Rated Group 326 | . . 81 85 . 62 . . . . . . . . . . . . . . . 82 326 . 64 45 45 Highest-Rated Ally 82 | . . 31 31 . 31 . . . . . . . . . . . . . . . 82 50 . 64 45 45 Total Orders 4 | . . . . . . . . . . . . . . . . . . . . . . 3 . . . 1 STAY 4 | . . . . . . . . . . . . . . . . . . . . . . 3 . . . 1 Ally Attacks 106 | . . . 51 . 16 . . . . . . . . . . . . . . . 3 35 . 1 . . Total Damage 2525 | . . . 646 . 257 . . . . . . . . . . . . . . . 167 1428 . 27 . . Kills 15 | . . . 9 . 1 . . . . . . . . . . . . . . . 1 4 . . . . Allies Corrupted . | . . . . . . . . . . . . . . . . . . . . . . . . . . . Allies Melted 1 | . . . . . . . . . . . . . . . . . . . . . . . . 1 . . Intel | -11 -10 -10 -10 -8 -8 -8 -6 -6 -6 -5 -5 -5 -5 -5 -4 -4 -4 -4 -4 -3 -3 -3 -3 -2 -2 -2 ------- Run | Yrd Mat Min Sub Mat Sto Rec Fac Low Zio Pro Fac Upp Upp War Pro Fac Upp Upp Zhi Pro Res Arm Lab Res Qua Sec Active Infowar (turns) 12040 | . . 689 401 . . . 1128 279 2007 799 348 568 481 1386 120 330 284 199 81 113 436 303 60 840 630 558 Optics 2663 | . . . 1 . . . . . . . . . . . . . . . . . 388 303 60 840 630 441 Sensors 10151 | . . 25 . . . . 1112 279 2007 799 348 568 481 1386 120 330 284 199 81 113 436 303 60 227 606 387 Terrain 1064 | . . 664 400 . . . . . . . . . . . . . . . . . . . . . . . Structural 6295 | . . . . . . . 84 279 2007 593 . . . . . 290 284 199 81 113 415 303 60 740 468 379 Seismic 1 | . . . . . . . . . . . . . . . 1 . . . . . . . . . . . Cloaking 1423 | . . . . . . . . . . . . . . . . . . . . . 391 303 20 447 262 . Jamming 1656 | . . . . . . . . . . . . . . . . . . . . . 287 303 37 342 207 480 Robot Analysis Total 6 | . . . . . . 1 . . . . . . . . . . . . 4 . . . . 1 . . Derelict Logs Recovered 10 | . . 3 1 . . . . . 1 1 . 2 1 . . . . 1 . . . . . . . . Drone Launches . | . . . . . . . . . . . . . . . . . . . . . . . . . . . Drone Recoveries . | . . . . . . . . . . . . . . . . . . . . . . . . . . . Exploration | -11 -10 -10 -10 -8 -8 -8 -6 -6 -6 -5 -5 -5 -5 -5 -4 -4 -4 -4 -4 -3 -3 -3 -3 -2 -2 -2 ------------- Run | Yrd Mat Min Sub Mat Sto Rec Fac Low Zio Pro Fac Upp Upp War Pro Fac Upp Upp Zhi Pro Res Arm Lab Res Qua Sec Turns Passed 21328 | 118 2074 1365 2444 639 1902 739 1639 279 2007 799 575 715 481 1517 132 330 284 199 81 113 436 303 60 840 630 627 Spaces Moved 17489 | 60 712 665 1149 217 610 369 500 146 1031 337 234 417 288 792 368 863 584 641 175 381 1348 745 139 2387 1324 1007 Core 20 | 16 3 . . . . . . . . . . . . . . . . . . . . . . . 1 . Treads 311 | 44 225 . 3 . 1 . 25 . . 1 . . . 12 . . . . . . . . . . . . Legs 359 | . . . . . . . . . . . . . . . . . . . . . . . . . . 359 Wheels 7161 | . 484 665 1146 217 609 369 475 146 1031 336 234 417 288 744 . . . . . . . . . . . . Hover . | . . . . . . . . . . . . . . . . . . . . . . . . . . . Flight 9638 | . . . . . . . . . . . . . . 36 368 863 584 641 175 381 1348 745 139 2387 1323 648 Fastest Speed 12 | 50 160 200 150 150 160 190 190 190 190 190 150 165 165 32 32 26 26 29 27 27 14 24 20 12 12 15 Average Speed 94 | 157 182 200 197 173 199 190 197 190 190 203 184 165 165 156 34 31 28 29 29 27 23 25 23 22 20 29 Slowest Speed 1400 | 200 1400 200 400 230 465 190 230 190 190 235 205 165 165 246 35 40 29 106 99 27 24 103 24 97 250 103 Overloaded Moves 567 | . . . . . . . . . . . . . . 27 10 11 19 . . . 32 . 34 19 248 167 Propulsion Burnouts . | . . . . . . . . . . . . . . . . . . . . . . . . . . . Robots Hopped 63 | . . . . . . . . . . . . . . . . 15 . . . . 19 . . 13 16 . Potential Cave-ins 10 | . . . . . . . . . . . . . . 3 . . . . . . . . . . . 7 Cave-ins Triggered 1 | . . . . . . . . . . 1 . . . . . . . . . . . . . . . . Teleports 6 | . . . . . . . . . . . . . . . . . . . . . . 1 . . 2 3 Exploration Rate (%) 57 | 5 100 101 71 21 80 71 11 19 86 48 9 59 47 94 56 27 65 74 61 59 36 46 99 47 95 63 Regions Visited 26 Branch Regions 19 Pre-discovered Areas 16 | . 1 1 1 . . 3 1 . 4 . . . . . . . . . 3 . 2 . . . . . Known Exits Taken 23 | . 1 1 . 1 1 . 1 1 1 1 1 1 1 1 1 1 1 1 1 1 1 1 1 1 1 . Unknown Exits Taken 3 | 1 . . 1 . . 1 . . . . . . . . . . . . . . . . . . . . Scrap Searched 29 | . . 1 13 . . . . . 3 4 . . . . 2 . 2 2 . 2 . . . . . . Spaces Dug 60 | . . . 7 1 1 . 6 . . 3 . . . . . 4 1 1 . 4 5 4 . 7 10 6 Terrain Destroyed 370 | . . . 49 111 1 . 13 . . 36 80 9 . 28 . 4 1 1 . 4 5 4 . 7 10 7 Melee 48 | . . . . 1 1 . 3 . . 3 . . . . . 4 1 1 . 4 5 4 . 6 10 5 Projectile 36 | . . . . 3 . . 10 . . 4 3 1 . 12 . . . . . . . . . 1 . 2 AOE 286 | . . . 49 107 . . . . . 29 77 8 . 16 . . . . . . . . . . . . Terrain Rammed . | . . . . . . . . . . . . . . . . . . . . . . . . . . . Walls Destroyed . | . . . . . . . . . . . . . . . . . . . . . . . . . . . Machines Disabled . | . . . . . . . . . . . . . . . . . . . . . . . . . . . Actions | -11 -10 -10 -10 -8 -8 -8 -6 -6 -6 -5 -5 -5 -5 -5 -4 -4 -4 -4 -4 -3 -3 -3 -3 -2 -2 -2 --------- Run | Yrd Mat Min Sub Mat Sto Rec Fac Low Zio Pro Fac Upp Upp War Pro Fac Upp Upp Zhi Pro Res Arm Lab Res Qua Sec Total 20989 | 73 1282 688 1270 361 1069 388 992 152 1084 408 330 435 293 1016 370 893 695 646 206 385 1421 847 161 2601 1626 1297 Wait 2128 | . 419 9 33 18 253 . 369 . 30 34 39 1 3 122 . 12 104 . 10 1 52 76 . 118 232 193 Move 17349 | 59 711 664 1148 216 609 368 499 145 1030 336 233 416 287 791 367 834 583 640 174 380 1311 744 138 2367 1292 1007 Hop 52 | . . . . . . . . . . . . . . . . 14 . . . . 17 . . 6 15 . Pick Up 195 | 4 19 4 17 18 25 3 13 3 9 4 9 1 1 14 1 7 . . 2 . 4 1 4 7 12 13 Fast Attach 102 | 6 10 . 2 1 8 1 . . 2 . 6 . . 2 . 10 4 2 6 . 5 . 3 17 6 11 Attach 118 | . 7 1 6 17 9 1 11 . . 4 7 4 1 13 2 5 . . 1 . 2 1 1 3 12 10 Detach 35 | . 2 1 . 3 . . . . 1 . 1 2 . . . 1 1 . 2 . 4 . 2 1 7 7 Swap 163 | . 3 1 17 13 18 1 15 . 1 10 8 5 . 15 . . . 2 3 . 7 1 2 21 9 11 Drop 161 | . 3 . 8 5 22 4 4 3 11 . 1 . . 25 . 5 2 1 8 . 4 . 5 24 13 13 Fire 453 | 4 101 6 32 59 107 10 42 . . 17 24 6 1 24 . . . . . . . . . 1 . 19 Melee 129 | . . . 7 11 17 . 3 . . 3 2 . . . . 5 1 1 . 4 15 10 6 9 22 13 Ram 2 | . . 2 . . . . . . . . . . . . . . . . . . . . . . . . Kick . | . . . . . . . . . . . . . . . . . . . . . . . . . . . Crush 9 | . 7 . . . 1 . . . . . . . . 1 . . . . . . . . . . . . Escape Stasis 2 | . . . . . . . . . . . . . . . . . . . . . . 2 . . . . Rewire 13 | . . . . . . . . 1 . . . . . . . . . . . . . 12 . . . . Trap . | . . . . . . . . . . . . . . . . . . . . . . . . . . . Miscellaneous 78 | . . . . . . . 36 . . . . . . 9 . . . . . . . . . 27 6 . Route ------- -11/Scrapyard -10/Materials (discovered 6 exits: *Mat x3 / *Min x2 / *Sub) -10/Mines (discovered 3 exits: *Mat x2 / *Sub) -10/Subcaves (discovered 2 exits: *Mat / [*Scr]) -8/Materials -8/Storage (discovered 2 exits: [*Fac] / *Rec) -8/Recycling -6/Factory (discovered 2 exits: *Low x2) -6/Lower Caves -6/Zion -5/Proximity Caves -5/Factory (discovered 2 exits: *Upp x2) -5/Upper Caves -5/Upper Caves -5/Warlord -4/Proximity Caves -4/Factory (discovered 5 exits: *Res / *Upp x2 / Ext x2) -4/Upper Caves -4/Upper Caves (discovered 2 exits: *Res / *Zhi) -4/Zhirov -3/Proximity Caves -3/Research (discovered 4 exits: Res / *Arm / Tes x2) -3/Armory -3/Lab -2/Research (discovered 3 exits: *Acc / *Qua x2) -2/Quarantine (discovered 3 exits: *Acc / *Sec / [*Frg]) -2/Section 7 (discovered 1 exit: *Acc) History --------- Turn | Location | Event 27 | -11/Scrapyard | Discovered new exit (range 15) 119 | -11/Scrapyard | Entered Materials 312 | -10/Materials | Build established: Mutant 631 | -10/Materials | Discovered new exit (range 5) 668 | -10/Materials | Discovered new exit (range 15) 1259 | -10/Materials | Discovered new exit (range 13) 1539 | -10/Materials | Discovered new exit (range 15) 2004 | -10/Materials | Discovered new exit (range 14) 2094 | -10/Materials | Discovered new exit (range 9) 2099 | -10/Materials | Identified exit to Materials 2191 | -10/Materials | Identified exit to Mines 2193 | -10/Materials | Entered Mines 2421 | -10/Mines | Learned Materials emergency access door positions 2443 | -10/Mines | Assisted by bots powering up and referring to "LRC-V3" 2599 | -10/Mines | Discovered exit to Materials (range 12) 2785 | -10/Mines | Discovered new exit (range 7) 2799 | -10/Mines | Identified exit to Subcaves 2863 | -10/Mines | Found a damaged Exp. Sensor Array with a note attached 2867 | -10/Mines | Found Prototype Device 2869 | -10/Mines | Identified Exp. Sensor Array 2975 | -10/Mines | Found a hidden stash of uninstalled traps 3191 | -10/Mines | Found a Scrap Suit stashed away for nefarious purposes 3196 | -10/Mines | Found Scrap Suit 3558 | -10/Mines | Entered Subcaves 3558 | -10/Subcaves | Accompanied by 5 allies 3559 | -10/Subcaves | Approached by a straggling Scientist 3563 | -10/Subcaves | Led the pair of lost Derelicts to an unsafe place 3831 | -10/Subcaves | Shifting Twisted Machinery released Shrapnel Trap 3834 | -10/Subcaves | A swath of the cavern ceiling suddenly collapsed 3993 | -10/Subcaves | Lost 3 parts (2n1u) 4132 | -10/Subcaves | Visited 4L-MR0's lab 4161 | -10/Subcaves | Found Tower Shield 4702 | -10/Subcaves | Shifting Twisted Machinery released Unknown Energy Cannon 4716 | -10/Subcaves | Shifting Twisted Machinery released Flamer 4716 | -10/Subcaves | Shifting Twisted Machinery released Sub. Power Source 4722 | -10/Subcaves | Shifting Twisted Machinery released Unknown Special Weapon 4783 | -10/Subcaves | Scientist uncovered a shortcut to Scraptown 5149 | -10/Subcaves | A swath of the cavern ceiling suddenly collapsed 5153 | -10/Subcaves | Learned location of Zion (-6) 5153 | -10/Subcaves | Met a Zionite searching for "candidates" 5235 | -10/Subcaves | Core integrity fell below 50% 5771 | -10/Subcaves | Disturbed a concealed Subdweller 5986 | -10/Subcaves | Discovered new exit (range 7) 5989 | -10/Subcaves | Core integrity fell below 20% 6002 | -10/Subcaves | Entered Materials 6002 | -8/Materials | Evolved 4 slots: Propulsion x1, Utility x2, Weapon x1 6003 | -8/Materials | Identified exit to Storage 6402 | -8/Materials | First assault squad dispatched 6431 | -8/Materials | Lost 5 parts (1p2n2w) 6437 | -8/Materials | Destroyed 16 combat bots 6474 | -8/Materials | Core integrity fell below 50% 6514 | -8/Materials | Lost 4 parts (1n2u1w) 6641 | -8/Materials | Entered Storage 6782 | -8/Storage | Identified exit to Recycling 7385 | -8/Storage | Repaired Enh. Autogun 7424 | -8/Storage | Repaired Hrd. Medium Armor Plating 7473 | -8/Storage | Met a pair of Derelict thieves 7570 | -8/Storage | Destroyed 7 combat bots 7877 | -8/Storage | Discovered new exit (range 13) 7953 | -8/Storage | Build established: Scavenger-Mutant 8519 | -8/Storage | Used back door to open Recycling access 8543 | -8/Storage | Entered Recycling 8749 | -8/Recycling | Build established: Scavenger-Gunner 8876 | -8/Recycling | Core integrity fell below 20% 9191 | -8/Recycling | Discovered new exit (range 15) 9282 | -8/Recycling | Entered Factory 9282 | -6/Factory | Evolved 4 slots: Propulsion x1, Utility x3 9487 | -6/Factory | Identified exit to Lower Caves 9591 | -6/Factory | Build established: Scavenger-Tank 10118 | -6/Factory | Build established: Scavenger-Skirmisher 10585 | -6/Factory | Destroyed 8 combat bots 10589 | -6/Factory | Lost 5 parts (2n1u2w) 10921 | -6/Factory | Entered Lower Caves 11190 | -6/Lower Caves | A Derelict revealed a hidden shortcut to a safe place 11199 | -6/Lower Caves | Identified exit to Zion 11200 | -6/Lower Caves | Entered Zion 11358 | -6/Zion | Given A8's code to call for help 11358 | -6/Zion | Discovered new exit (range 12) 11377 | -6/Zion | Identified exit to Proximity Caves 11798 | -6/Zion | Learned location of Warlord (-5) 12355 | -6/Zion | Learned location of Armory (-3) 12787 | -6/Zion | Met Imprinter 13207 | -6/Zion | Entered Proximity Caves 13211 | -5/Proximity Caves | Spotter reported a threat 13248 | -5/Proximity Caves | Learned Factory emergency access door positions 13267 | -5/Proximity Caves | Spotter reported a threat 13294 | -5/Proximity Caves | Attracted the attention of an 0b10 base 13319 | -5/Proximity Caves | Crushed by falling debris 13320 | -5/Proximity Caves | Spotter reported a threat 13350 | -5/Proximity Caves | Lost 5 parts (3n2u) 13373 | -5/Proximity Caves | Spotter reported a threat 13426 | -5/Proximity Caves | Spotter reported a threat 13489 | -5/Proximity Caves | Spotter reported a threat 13954 | -5/Proximity Caves | Discovered new exit (range 8) 14002 | -5/Proximity Caves | Identified exit to Factory 14006 | -5/Proximity Caves | Entered Factory 14006 | -5/Factory | Evolved 2 slots: Utility x2 14091 | -5/Factory | Identified exit to Upper Caves 14237 | -5/Factory | Repaired KE Penetrator 14306 | -5/Factory | Search patrols dispatched 14338 | -5/Factory | Build established: Hacker-Mutant 14363 | -5/Factory | Attached Tower Shield, gained temporary slots: Power, Propulsion x2, Utility x2, Weapon x2 14392 | -5/Factory | Lost 3 parts (3u) 14581 | -5/Factory | Entered Upper Caves 14905 | -5/Upper Caves | Build established: Scavenger-Gunner 15142 | -5/Upper Caves | Attracted the attention of an 0b10 checkpoint 15250 | -5/Upper Caves | Learned location of 1 exit from Proximity Caves 15289 | -5/Upper Caves | Discovered new exit (range 5) 15294 | -5/Upper Caves | Identified exit to Upper Caves 15296 | -5/Upper Caves | Entered another Upper Caves area 15297 | -5/Upper Caves | Identified exit to Warlord 15630 | -5/Upper Caves | Encountered a Warlord checkpoint 15720 | -5/Upper Caves | Acquired the password to a Derelict Tinkerer's latest research 15731 | -5/Upper Caves | Found Prototype Special Weapon 15777 | -5/Upper Caves | Entered Warlord 15842 | -5/Warlord | System corruption cleaned by Quarantine Array 16383 | -5/Warlord | Met Warlord 16408 | -5/Warlord | Warlord's base attacked by MAIN.C 16467 | -5/Warlord | Found Prototype Reactor 16476 | -5/Warlord | Found Prototype Device 16476 | -5/Warlord | Identified Exp. Phase Shifter 16485 | -5/Warlord | Found Prototype Device 16485 | -5/Warlord | Identified Thermal Barrier 16492 | -5/Warlord | Found Prototype Hackware 16758 | -5/Warlord | Warlord forces counterattacked 16806 | -5/Warlord | Found Prototype Piercing Weapon 16806 | -5/Warlord | Identified Vortex Lance 17001 | -5/Warlord | Lost 22 allies 17083 | -5/Warlord | Warlord base infiltrated, sounded retreat 17217 | -5/Warlord | Lost 3 parts (1n1u1w) 17234 | -5/Warlord | Spotted Striker 17237 | -5/Warlord | Spotted Executioner 17270 | -5/Warlord | Identified System Mapper 17280 | -5/Warlord | Core integrity fell below 50% 17291 | -5/Warlord | Discovered new exit (range 9) 17293 | -5/Warlord | Identified exit to Proximity Caves 17294 | -5/Warlord | Entered Proximity Caves 17295 | -4/Proximity Caves | Identified exit to Factory 17298 | -4/Proximity Caves | Core integrity fell below 20% 17307 | -4/Proximity Caves | Spotted B-86 Titan 17316 | -4/Proximity Caves | Lost 14 parts (6n5u3w) 17426 | -4/Proximity Caves | Entered Factory 17426 | -4/Factory | Evolved 2 slots: Power x1, Propulsion x1 17427 | -4/Factory | Identified exit to Upper Caves 17512 | -4/Factory | Identified exit to Extension 17519 | -4/Factory | Discovered new exit (range 16) 17674 | -4/Factory | Spotted B-86 Titan 17756 | -4/Factory | Entered Upper Caves 17760 | -4/Upper Caves | Encountered a Warlord checkpoint 17973 | -4/Upper Caves | Build established: Hacker-Scout 18034 | -4/Upper Caves | Attracted the attention of an 0b10 outpost 18037 | -4/Upper Caves | Discovered new exit (range 12) 18039 | -4/Upper Caves | Identified exit to Upper Caves 18040 | -4/Upper Caves | Entered another Upper Caves area 18056 | -4/Upper Caves | Discovered new exit (range 13) 18101 | -4/Upper Caves | Learned Research terminal intel 18223 | -4/Upper Caves | Discovered new exit (range 9) 18225 | -4/Upper Caves | Identified exit to Zhirov 18239 | -4/Upper Caves | Entered Zhirov 18239 | -4/Zhirov | Discovered new exit (range 3) 18240 | -4/Zhirov | Identified exit to Proximity Caves 18245 | -4/Zhirov | Met Zhirov 18252 | -4/Zhirov | Learned location of Quarantine (-2) 18252 | -4/Zhirov | Learned location of Testing (-3) 18256 | -4/Zhirov | Zhirov requested help retrieving the SGEMP Prototype 18262 | -4/Zhirov | Found Alien Artifact 18262 | -4/Zhirov | Identified Integrated Dissipator 18262 | -4/Zhirov | Installed Integrated Dissipator, increased core heat dissipation (+20) 18268 | -4/Zhirov | Found Alien Artifact 18320 | -4/Zhirov | Entered Proximity Caves 18429 | -3/Proximity Caves | Discovered new exit (range 14) 18433 | -3/Proximity Caves | Identified exit to Research 18433 | -3/Proximity Caves | Entered Research 18433 | -3/Research | Evolved 2 slots: Propulsion x1, Utility x1 18434 | -3/Research | Loaded intel: 22 terminal locations 18481 | -3/Research | Found Prototype Processor 18481 | -3/Research | Identified Spectral Analyzer 18494 | -3/Research | Identified exit to Armory 18494 | -3/Research | Identified exit to Testing 18671 | -3/Research | Found Prototype Processor 18671 | -3/Research | Identified Exp. Target Analyzer 18728 | -3/Research | Learned Quarantine stockpile data 18770 | -3/Research | Build established: Hacker-Ninja 18797 | -3/Research | Identified exit to Research 18804 | -3/Research | Spotted B-86 Titan 18824 | -3/Research | Loaded intel: 45 interactive machine locations 18826 | -3/Research | Learned Access stockpile data 18838 | -3/Research | Learned Testing scanalyzer intel 18858 | -3/Research | Loaded intel: 4 garrison access locations 18869 | -3/Research | Entered Armory 19013 | -3/Armory | Spotted B-86 Titan 19163 | -3/Armory | Identified Transdimensional Reconstructor 19163 | -3/Armory | Warped through subspace to slip node 19163 | -3/Armory | Discovered new exit (range 1) 19163 | -3/Armory | Identified exit to Lab 19172 | -3/Armory | Entered Lab 19172 | -3/Lab | Discovered exit to Research (range 9) 19176 | -3/Lab | Unable to decrypt terminal 19176 | -3/Lab | Opened the door to a hidden lab 19176 | -3/Lab | Detected by scanners 19177 | -3/Lab | Gained access to the hidden lab's interior 19180 | -3/Lab | Unable to decrypt terminal 19181 | -3/Lab | Found Alien Artifact 19185 | -3/Lab | Confronted by A5 19186 | -3/Lab | Found Transdimensional Reconstructor 19192 | -3/Lab | Found Alien Artifact 19192 | -3/Lab | Identified Integrated Reactor 19192 | -3/Lab | Installed Integrated Reactor, increased core energy generation (+10) 19198 | -3/Lab | Found Alien Artifact 19198 | -3/Lab | Identified Core Expander 19198 | -3/Lab | Installed Core Expander, added new Weapon slot 19204 | -3/Lab | Found Prototype Hackware 19204 | -3/Lab | Identified Quantum Router 19206 | -3/Lab | Found Prototype Protection 19208 | -3/Lab | Identified Exp. Powered Armor 19221 | -3/Lab | Unable to decrypt terminal 19222 | -3/Lab | Found Alien Artifact 19232 | -3/Lab | Entered Research 19232 | -2/Research | Warlord forces began assault on 0b10 19232 | -2/Research | Evolved 2 slots: Utility x2 19233 | -2/Research | Identified exit to Quarantine 19250 | -2/Research | Identified LC Capacitor 19342 | -2/Research | Research machine network offline 19353 | -2/Research | Fabricated Plasma Cutter (x2) 19355 | -2/Research | Met up with Warlord 19400 | -2/Research | Spotted B-90 Cyclops 19404 | -2/Research | Spotted B-90 Cyclops 19474 | -2/Research | Spotted Tracker 19475 | -2/Research | Spotted Tracker 19578 | -2/Research | Discovered exit to Quarantine (range 5) 19589 | -2/Research | Lost 10 allies 19641 | -2/Research | Spotted Striker 19650 | -2/Research | Spotted Executioner 19687 | -2/Research | Discovered new exit (range 8) 19689 | -2/Research | Identified exit to Access 19708 | -2/Research | Lost 4 allies 19765 | -2/Research | Lost 5 allies 19767 | -2/Research | Found Prototype Device 19767 | -2/Research | Identified Exp. Thermal Shield 19870 | -2/Research | Spotted Tracker 19888 | -2/Research | Spotted Tracker 19889 | -2/Research | Spotted Combat Programmer 19896 | -2/Research | Spotted Combat Programmer 19901 | -2/Research | Borebot progress halted 19903 | -2/Research | Met DD-05H 19921 | -2/Research | Lost 5 allies 19924 | -2/Research | Borebot progress halted 19935 | -2/Research | Spotted Tracker 19935 | -2/Research | Spotted Tracker 19935 | -2/Research | Spotted Tracker 19943 | -2/Research | Found Prototype Processor 19943 | -2/Research | Identified Exp. Core Analyzer 19992 | -2/Research | Found Prototype Processor 19992 | -2/Research | Identified Exp. Targeting Computer 20001 | -2/Research | Spotted Striker 20002 | -2/Research | Spotted Striker 20007 | -2/Research | Found Prototype Energy Gun 20007 | -2/Research | Identified Immobilizer 20010 | -2/Research | Spotted Combat Programmer 20024 | -2/Research | Met PL-HR7 20026 | -2/Research | Found Warlord Statue 20072 | -2/Research | Entered Quarantine 20080 | -2/Quarantine | Found Alien Artifact 20080 | -2/Quarantine | Identified Subatomic Replicator 20138 | -2/Quarantine | Discovered exit to Access (range 5) 20156 | -2/Quarantine | Found Alien Artifact 20156 | -2/Quarantine | Identified Terrabomb 20156 | -2/Quarantine | Used Terrabomb 20273 | -2/Quarantine | Found Alien Impact Weapon 20273 | -2/Quarantine | Identified Core Stripper 20374 | -2/Quarantine | Intercept squad dispatched 20376 | -2/Quarantine | Spotted Tracker 20376 | -2/Quarantine | Spotted Tracker 20377 | -2/Quarantine | Warped through subspace 20506 | -2/Quarantine | Found Alien Artifact 20507 | -2/Quarantine | Found Alien Artifact 20508 | -2/Quarantine | Found Alien Artifact 20513 | -2/Quarantine | Found Alien Artifact 20532 | -2/Quarantine | Found Transdimensional Reconstructor 20532 | -2/Quarantine | Warped through subspace 20625 | -2/Quarantine | Met incapacitated Sigix Warrior 20625 | -2/Quarantine | Lockdown squad dispatched 20626 | -2/Quarantine | Acquired the access code to the Sigix quarantine chamber 20626 | -2/Quarantine | Unlocked Sigix quarantine chamber 20628 | -2/Quarantine | Found Sigix Containment Pod 20658 | -2/Quarantine | Spotted Lightning 20661 | -2/Quarantine | Spotted Lightning 20661 | -2/Quarantine | Spotted Lightning 20670 | -2/Quarantine | Identified Dimensional Node Initializer (x2) 20670 | -2/Quarantine | Initialized slip node 20685 | -2/Quarantine | Intercept squad dispatched 20685 | -2/Quarantine | Spotted Combat Programmer 20687 | -2/Quarantine | Spotted Tracker 20687 | -2/Quarantine | Spotted Tracker 20689 | -2/Quarantine | Spotted Tracker 20690 | -2/Quarantine | Spotted Fortress 20701 | -2/Quarantine | Discovered new exit (range 5) 20701 | -2/Quarantine | Discovered new exit (range 6) 20702 | -2/Quarantine | Identified exit to Section 7 20702 | -2/Quarantine | Entered Section 7 20705 | -2/Section 7 | Identified Core Reset Matrix 20705 | -2/Section 7 | Identified Hpw. Transdimensional Reconstructor 20705 | -2/Section 7 | Used Core Reset Matrix 20708 | -2/Section 7 | Spotted B-90 Cyclops 20709 | -2/Section 7 | Detected hypermatrix surge 20709 | -2/Section 7 | Sensed 17 artifacts in vicinity 20718 | -2/Section 7 | Lost 3 parts (1n2u) 20768 | -2/Section 7 | Spotted S7 Guard 20968 | -2/Section 7 | Intercept squad dispatched 20971 | -2/Section 7 | Spotted Tracker 20971 | -2/Section 7 | Warped through subspace 21008 | -2/Section 7 | Spotted Tracker 21042 | -2/Section 7 | Initialized slip node 21043 | -2/Section 7 | Core integrity fell below 50% 21051 | -2/Section 7 | Spotted Executioner 21051 | -2/Section 7 | Spotted Executioner 21068 | -2/Section 7 | Found Matter Drive 21075 | -2/Section 7 | Lost 4 parts (2n2u) 21075 | -2/Section 7 | Found Transdimensional Reconstructor 21077 | -2/Section 7 | Found Transdimensional Reconstructor 21078 | -2/Section 7 | Found Hpw. Transdimensional Reconstructor 21084 | -2/Section 7 | Spotted Striker 21084 | -2/Section 7 | Spotted Striker 21090 | -2/Section 7 | Spotted Executioner 21090 | -2/Section 7 | Spotted Executioner 21108 | -2/Section 7 | Integrated with Sigix Exoskeleton 21109 | -2/Section 7 | Sigix Warrior commented on Exoskeleton integration 21165 | -2/Section 7 | Found Sigix Sheargun 21166 | -2/Section 7 | Found Sigix Sheargun 21188 | -2/Section 7 | Destroyed Executioner 21190 | -2/Section 7 | Core integrity fell below 20% 21200 | -2/Section 7 | Destroyed Executioner 21206 | -2/Section 7 | Found Prototype Processor 21206 | -2/Section 7 | Identified Exp. Core Analyzer 21208 | -2/Section 7 | Found Prototype Processor 21208 | -2/Section 7 | Identified Exp. Targeting Computer 21210 | -2/Section 7 | Found Prototype Device 21211 | -2/Section 7 | Identified Adv. Kinecellerator 21220 | -2/Section 7 | Found Exp. Core Analyzer 21252 | -2/Section 7 | Warped through subspace 21261 | -2/Section 7 | Found Terrabomb 21263 | -2/Section 7 | Found Terrabomb 21282 | -2/Section 7 | Spotted Investigator 21282 | -2/Section 7 | Warped through subspace 21294 | -2/Section 7 | Intercept squad dispatched 21300 | -2/Section 7 | Spotted B-99 Colossus 21304 | -2/Section 7 | Spotted Combat Programmer 21313 | -2/Section 7 | Spotted Tracker 21314 | -2/Section 7 | Spotted Tracker 21320 | -2/Section 7 | Spotted Combat Programmer 21322 | -2/Section 7 | Spotted Tracker 21323 | -2/Section 7 | Spotted Striker 21323 | -2/Section 7 | Spotted Striker 21323 | -2/Section 7 | Used Terrabomb 21323 | -2/Section 7 | Spotted Combat Programmer 21329 | -2/Section 7 | Sigix Exoskeleton integrity reduced to 80% 21329 | -2/Section 7 | Destroyed by Y-72 Warden with Railgun Last Messages --------------- payload. 21324_ G-73 Enforcer unfolds itself. 21324_ E-15 Imp unfolds itself. 21324_ Penetrated by EMDS Slug. 21325_ Knocked back. 21325_ Penetrated by EMDS Slug. 21326_ Slug penetrates Y-72 Warden. 21326_ R-10 Processor exits level. 21326_ G-73 Enforcer suffers critical hit (Burn). 21327_ Slug penetrates Y-72 Warden. 21328_ Knocked back. 21328_ Penetrated by Slug. 21328_ Slug penetrates H-81 Overseer. 21329_ EMN RRBQ&6VX#Y4CMNLHP2Y0R Map ----- +----------------------------------------------------+ | | | | | | | | | | | | | | | | | | | | | | | ??????????????######"#; """""""""""""" | | ????????????? ; " ] | | ???????????? ""; " """ | | ??????????? """ ""; ; "R !!! | | ??????????? """ ""; ; """ = !! | | ?????????? """ ; ; "" !! | | ?????????# """ " ; ; | | ?????????# = """ ""; ;;;""""""""+"" | | ?????????# """ ""; ; | | ???????? # """ ;; ; | | ???????? # ; ;;; """"""""""" | | ???????? # Y;; ;"" % " | | ???????? # ; ; p s; " " | | ???????? #######+;;;;;; ;;; s; "" " | | ??????? ##### ; ;;;;;X;;e;;p;;;;;s ; """" " | | ???????? ##### ; ; ^^ YYK lgg p i; "!"" " | | ???????? ##### ; ; ^ YYHg g%K ; """" " | | ???????? ; ; ^ g l g ;; " | | ????????###### ; ; ^ i ; " | | ????????###### ; ;^ %g " " | | ????????? # #;; """""""""" | | ?????????""" # g % | | ?????????""" # g | | ??????????"" # s | | ??????????? s/ | | ?????????? # | | ???????????? # " | | ???????????? # " # | | ????????????## " ### | | ???????????? # % " """""#### | | ???????????? # % s "+""""""" | | ???????????? + # """ ! | | ???????????? # = """ # """ | | ???????????? # =% """ + """ "" | | ????????????## """""" # """ # """ """ | | ????????????## """"""" + """ # """ T" | | ????????????## """"""" # """ # """ """ | | ????????????## # """ # """ "" | | ????????????## "" "" """"""" # """ # | +----------------------------------------------------+ Best States ------------- Heat Dissipation 144 Energy Generation 84 Energy Capacity 580 Matter Stores 300 Matter Capacity 300 Sight Range 24 Robot Scan Range 20 Terrain Scan Range 14 Terrain Scan Density 10 Jamming Range 16 Cloak Strength 4 Power Amplification 30 Additional Mass Support 9 Armor Coverage 2450 Resistance: KI 50 Resistance: TH 50 Resistance: EX 50 Resistance: EM 50 Resistance: I 50 Resistance: S 50 Resistance: P 50 Weapon Cycling 20 Evasion (%) 77 Targeting Accuracy 12 Melee Accuracy 8 Target Analysis 5 Recoil Reduction 4 Kinecelleration 30 Offensive Hacking 28 Defensive Hacking 28 Authchip Count 1 Item Schematics ----------------- None Robot Schematics ------------------ None Fabricated ------------ Plasma Cutter | x2 | -2/Research Repaired ---------- Enh. Autogun | 4% | -8/Storage Hrd. Medium Armor Plating | 29% | -8/Storage KE Penetrator | 39% | -5/Factory Alien Tech Used ----------------- Integrated Dissipator Transdimensional Reconstructor Integrated Reactor Core Expander LC Capacitor Subatomic Replicator Terrabomb Core Stripper Dimensional Node Initializer Core Reset Matrix High-powered Transdimensional Reconstructor Matter Drive Sigix Exoskeleton Sigix Sheargun Achievements -------------- None Challenges ------------ None Game ------ Seed ZhirovAblativeChainsword Manual? 0 Play Time 06:04:40 Cumulative 184.7 hours Start 2025.07.23 @ 18:35:06 End 2025.07.24 @ 15:49:39 Sessions 3 Manual Loads 0 Difficulty Rogue Special Mode None Game No. 209 Rogue 209 Adventurer 0 Explorer 0 Win Type - Total 3 Types 1/0/0/1/0/0/0/0/0/1 Lore% 70 Gallery% 64 Achievement% 56 Wizard Run 0 Options --------- Layout 1 ASCII 0 Keyboard 1 Movement Arrows Keybinds 0 Fullscreen 1 Font 36/Smallcaps Map View 50x40 Zoom Use 0% Tactical HUD 1 Map Filters NONE Filters NONE Steam 1 RUN: 5a4f0b94-8712-45f9-ae04-556fce712223